bitfinex/quotes_SOLUSD_20241107
["timestamp","ask_amount","ask_price","bid_price","bid_amount"]
[1730979510920,7.93640689,187.3,187.25,23.776884]
[1730979512025,0.12549,187.37,187.25,23.776884]
[1730979512219,7.93640689,187.3,187.25,23.776884]
[1730979513927,7.93640689,187.28,187.25,23.776884]
[1730979514924,7.93640689,187.26,187.22,21.3743]
[1730979515314,7.93640689,187.27,187.22,21.3743]
[1730979517223,7.93640689,187.26,187.22,21.3743]
[1730979517428,7.93640689,187.24,187.22,21.3743]
[1730979517814,7.93640689,187.25,187.22,21.3743]
[1730979518125,7.93640689,187.26,187.22,21.3743]
[1730979519431,7.93640689,187.25,187.22,21.3743]
[1730979521027,7.93640689,187.25,187.13,103.61824064]
[1730979521028,7.93640689,187.23,187.15,7.93640689]
[1730979521229,31.84562756,187.3,187.15,7.93640689]
[1730979521230,7.93640689,187.21,187.15,7.93640689]
[1730979521735,0.12549,187.28,187.13,27.20236544]
[1730979521736,7.93640689,187.22,187.16,7.93640689]
[1730979522232,7.93640689,187.22,187.17,23.776884]
[1730979522407,7.93640689,187.21,187.16,23.776884]
[1730979524329,7.93640689,187.21,187.15,23.776884]
[1730979527926,7.93640689,187.2,187.15,23.776884]
[1730979530445,7.93640689,187.21,187.14,23.776884]
[1730979530614,7.93640689,187.21,187.14,31.71329089]
[1730979532031,7.93640689,187.21,187.15,7.93640689]
[1730979532233,7.93640689,187.21,187.16,23.776884]
[1730979532730,7.93640689,187.22,187.16,31.71329089]
[1730979533034,0.12549,187.28,187.17,7.93640689]
[1730979533237,7.93640689,187.23,187.17,7.93640689]
[1730979535441,0.12549,187.29,187.18,23.776884]
[1730979535740,7.93640689,187.24,187.18,31.71329089]
[1730979536141,7.93640689,187.24,187.18,23.776884]
[1730979537138,96.0,187.33,187.18,31.71329089]
[1730979537329,7.93640689,187.25,187.2,23.776884]
[1730979539234,31.74562756,187.3,187.17,23.776884]
[1730979539235,7.93640689,187.22,187.17,23.776884]
[1730979539437,7.93640689,187.21,187.17,23.776884]
[1730979539828,7.93640689,187.21,187.16,23.776884]
[1730979540319,7.93640689,187.22,187.16,23.776884]
[1730979541440,7.93640689,187.21,187.16,23.776884]
[1730979543133,7.93640689,187.22,187.16,31.71329089]
[1730979544644,7.93640689,187.22,187.16,23.776884]
[1730979544837,7.93640689,187.22,187.16,31.71329089]
[1730979548041,7.93640689,187.21,187.16,23.776884]
[1730979548243,7.93640689,187.21,187.15,23.776884]
[1730979549026,7.93640689,187.21,187.15,31.71329089]
[1730979549227,0.12549,187.29,187.17,23.776884]
[1730979549431,7.93640689,187.23,187.17,23.776884]
[1730979551047,7.93640689,187.22,187.17,23.776884]
[1730979551338,7.93640689,187.22,187.16,23.776884]
[1730979551934,7.93640689,187.21,187.16,23.776884]
[1730979552137,7.93640689,187.21,187.15,23.776884]
[1730979552423,7.93640689,187.22,187.15,7.93640689]
[1730979552629,7.93640689,187.22,187.16,23.776884]
[1730979555843,7.93640689,187.23,187.16,31.71329089]
[1730979560443,7.93640689,187.23,187.13,28.06374699]
[1730979560638,7.93640689,187.23,187.15,7.93640689]
[1730979561336,7.93640689,187.22,187.13,28.06374699]
[1730979561527,7.93640689,187.22,187.15,7.93640689]
[1730979561851,7.93640689,187.22,187.16,23.776884]
[1730979563152,7.93640689,187.23,187.16,31.71329089]
[1730979563449,7.93640689,187.24,187.18,23.776884]
[1730979565630,1.61470054,187.3,187.19,7.93640689]
[1730979565830,7.93640689,187.26,187.2,23.776884]
[1730979566032,7.93640689,187.25,187.2,23.776884]
[1730979566955,7.93640689,187.25,187.19,23.776884]
[1730979567665,7.93640689,187.25,187.19,31.71329089]
[1730979568377,7.93640689,187.24,187.19,23.776884]
[1730979569733,1.72781112,187.31,187.19,31.71329089]
[1730979569933,7.93640689,187.25,187.19,31.71329089]
[1730979570562,21.362211,187.32,187.21,23.776884]
[1730979570738,7.93640689,187.28,187.21,31.71329089]
[1730979570937,7.93640689,187.28,187.22,7.93640689]
[1730979571136,7.93640689,187.28,187.22,23.776884]
[1730979571338,21.357623,187.34,187.22,23.776884]
[1730979571339,7.93640689,187.27,187.22,23.776884]
[1730979572157,7.93640689,187.25,187.19,22.5283]
[1730979572659,5.46359,187.33,187.2,31.71329089]
[1730979572861,7.93640689,187.27,187.2,31.71329089]
[1730979573263,7.93640689,187.27,187.21,7.93640689]
[1730979575259,7.93640689,187.27,187.22,5.04858119]
[1730979575457,7.93640689,187.27,187.23,5.04858119]
[1730979575764,7.93640689,187.27,187.21,7.93640689]
[1730979577859,1.61126304,187.31,187.19,22.5283]
[1730979577860,0.12549,187.33,187.22,31.71329089]
[1730979578058,7.93640689,187.28,187.22,31.71329089]
[1730979578248,7.93640689,187.3,187.24,31.71329089]
[1730979581061,7.93640689,187.31,187.26,23.776884]
[1730979581859,0.12549,187.37,187.26,23.776884]
[1730979582067,7.93640689,187.31,187.26,23.776884]
[1730979582258,7.93640689,187.33,187.28,23.776884]
[1730979582567,7.93640689,187.34,187.28,31.71329089]
[1730979582764,7.93640689,187.33,187.28,23.776884]
[1730979585572,0.12549,187.37,187.28,23.776884]
[1730979585740,7.93640689,187.33,187.28,23.776884]
[1730979593974,7.93640689,187.34,187.28,31.71329089]
[1730979594773,7.93640689,187.35,187.29,7.93640689]
[1730979595064,7.93640689,187.36,187.3,31.71329089]
[1730979595271,7.93640689,187.37,187.3,31.71329089]
[1730979596363,7.93640689,187.36,187.3,31.71329089]
[1730979598275,7.93640689,187.35,187.3,23.776884]
[1730979599856,7.93640689,187.34,187.3,23.776884]
[1730979600050,7.93640689,187.34,187.29,23.776884]
[1730979600770,1.60601529,187.4,187.31,30.72420689]
[1730979600971,7.93640689,187.38,187.32,23.776884]
[1730979601553,0.12549,187.43,187.32,23.776884]
[1730979601861,7.93640689,187.38,187.32,23.776884]
[1730979602273,7.93640689,187.37,187.32,23.776884]
[1730979604070,7.93640689,187.35,187.31,22.7878]
[1730979605776,7.93640689,187.36,187.31,22.7878]
[1730979605977,7.93640689,187.37,187.32,23.776884]
[1730979606866,7.93640689,187.36,187.32,23.776884]
[1730979609082,7.93640689,187.36,187.31,22.7878]
[1730979609378,7.93640689,187.32,187.17,21.7845]
[1730979609575,7.93640689,187.28,187.22,7.93640689]
[1730979609877,7.93640689,187.28,187.18,5.54801388]
[1730979610179,7.93640689,187.28,187.22,7.93640689]
[1730979610557,7.93640689,187.3,187.24,23.33720689]
[1730979610767,7.93640689,187.31,187.25,31.71329089]
[1730979611364,7.93640689,187.31,187.25,23.776884]
[1730979612472,7.93640689,187.32,187.25,31.71329089]
[1730979612985,7.93640689,187.31,187.25,31.71329089]
[1730979613680,7.93640689,187.31,187.24,29.72090689]
[1730979613889,7.93640689,187.29,187.24,21.7845]
[1730979614181,7.93640689,187.3,187.24,29.72090689]
[1730979614957,7.93640689,187.3,187.25,23.776884]
[1730979616373,7.93640689,187.29,187.25,23.776884]
[1730979618679,7.93640689,187.28,187.24,21.7845]
[1730979623685,7.93640689,187.29,187.24,21.7845]
[1730979624175,21.355569,187.33,187.2,7.93640689]
[1730979624176,7.93640689,187.27,187.2,7.93640689]
[1730979624586,7.93640689,187.26,187.2,7.93640689]
[1730979625172,7.93640689,187.27,187.2,7.93640689]
[1730979625390,7.93640689,187.27,187.21,7.93640689]
[1730979625594,7.93640689,187.29,187.23,23.776884]
[1730979628295,158.52549,187.32,187.23,31.71329089]
[1730979628476,7.93640689,187.29,187.23,31.71329089]
[1730979628672,7.93640689,187.29,187.23,23.776884]
[1730979629808,7.93640689,187.28,187.22,23.776884]
[1730979629979,7.93640689,187.27,187.22,23.776884]
[1730979630586,7.93640689,187.27,187.18,27.83161388]
[1730979630786,7.93640689,187.27,187.21,7.93640689]
[1730979631592,7.93640689,187.27,187.2,7.93640689]
[1730979631798,7.93640689,187.27,187.21,23.776884]
[1730979631998,7.93640689,187.27,187.21,31.71329089]
[1730979632299,7.93640689,187.28,187.21,31.71329089]
[1730979632702,7.93640689,187.27,187.21,23.776884]
[1730979632874,7.93640689,187.25,187.21,23.776884]
[1730979633192,7.93640689,187.25,187.19,7.93640689]
[1730979634184,7.93640689,187.25,187.19,23.776884]
[1730979635085,7.93640689,187.25,187.19,31.71329089]
[1730979635286,186.81477846,187.33,187.19,31.71329089]
[1730979635577,158.4,187.32,187.21,7.93640689]
[1730979635797,7.93640689,187.27,187.22,23.776884]
[1730979637285,7.93640689,187.27,187.21,23.776884]
[1730979637605,7.93640689,187.26,187.21,23.776884]
[1730979637804,7.93640689,187.26,187.2,23.776884]
[1730979639286,7.93640689,187.26,187.2,7.93640689]
[1730979639898,7.93640689,187.26,187.21,23.776884]
[1730979640115,7.93640689,187.26,187.2,23.776884]
[1730979640605,7.93640689,187.25,187.19,23.776884]
[1730979640902,7.93640689,187.25,187.19,31.71329089]
[1730979641290,7.93640689,187.25,187.19,23.776884]
[1730979643109,7.93640689,187.24,187.19,23.776884]
[1730979643800,7.93640689,187.23,187.19,23.776884]
[1730979644113,7.93640689,187.24,187.19,23.776884]
[1730979645411,7.93640689,187.23,187.18,22.2836]
[1730979652514,7.93640689,187.22,187.18,22.2836]
[1730979653718,7.93640689,187.23,187.18,22.2836]
[1730979655619,7.93640689,187.22,187.18,22.2836]
[1730979662722,7.93640689,187.19,187.14,5.54888946]
[1730979662902,7.93640689,187.16,187.14,5.54888946]
[1730979663223,0.2,187.25,187.1,7.93640689]
[1730979663224,7.93640689,187.17,187.1,7.93640689]
[1730979663612,7.93640689,187.17,187.11,7.93640689]
[1730979664014,7.93640689,187.17,187.12,23.776884]
[1730979664202,7.93640689,187.17,187.11,7.93640689]
[1730979664699,7.93640689,187.17,187.08,6.338]
[1730979665199,7.93640689,187.17,187.11,7.93640689]
[1730979665601,7.93640689,187.12,187.08,1.0]
[1730979665799,7.93640689,187.11,187.08,1.0]
[1730979666029,7.93640689,187.1,187.08,1.0]
[1730979666328,7.93640689,187.11,187.08,1.0]
[1730979668315,7.93640689,187.12,187.08,1.0]
[1730979668624,7.93640689,187.14,187.09,23.776884]
[1730979670312,7.93640689,187.13,187.09,23.776884]
[1730979670935,7.93640689,187.12,187.09,23.776884]
[1730979672313,1.73681805,187.19,187.08,1.0]
[1730979672314,7.93640689,187.11,187.08,1.0]
[1730979673118,7.93640689,187.12,187.08,1.0]
[1730979673322,7.93640689,187.13,187.08,1.0]
[1730979674025,7.93640689,187.12,187.08,1.0]
[1730979675938,7.93640689,187.09,187.08,1.0]
[1730979677524,7.93640689,187.1,187.08,1.0]
[1730979680213,7.93640689,187.09,187.08,1.0]
[1730979683236,0.12549,187.13,187.08,1.0]
[1730979683452,7.93640689,187.09,187.08,1.0]
[1730979685328,158.52549,187.13,187.08,1.0]
[1730979685537,7.93640689,187.1,187.08,1.0]
[1730979685740,7.93640689,187.11,187.08,1.0]
[1730979686539,7.93640689,187.1,187.08,1.0]
[1730979694839,0.12549,187.08,187.06,0.5723908]
[1730979695037,8.06189689,187.07,187.06,0.5723908]
[1730979699839,0.12549,187.06,187.0,1.0]
[1730979700021,190.34562756,187.1,187.0,1.0]
[1730979700022,7.93640689,187.01,187.0,1.0]
[1730979700222,0.12549,187.08,187.0,1.0]
[1730979700443,7.93640689,187.01,187.0,1.0]
[1730979701149,160.16172293,187.08,187.0,1.0]
[1730979701350,1.63623293,187.08,187.0,1.0]
[1730979701645,7.93640689,187.04,187.0,1.0]
[1730979702021,0.12549,187.09,187.0,1.0]
[1730979702239,7.93640689,187.04,187.0,1.0]
[1730979702445,7.93640689,187.05,187.0,1.0]
[1730979702950,7.93640689,187.05,187.0,8.93640689]
[1730979704244,7.93640689,187.05,187.01,21.9098]
[1730979705425,0.12549,187.09,187.01,21.9098]
[1730979705756,7.93640689,187.06,187.01,21.9098]
[1730979709054,7.93640689,187.08,187.02,23.776884]
[1730979709353,0.12549,187.13,187.02,23.776884]
[1730979709530,7.93640689,187.07,187.02,23.776884]
[1730979711230,0.12549,187.13,187.02,23.776884]
[1730979711430,7.93640689,187.07,187.02,23.776884]
[1730979713547,20.12549,187.13,187.02,23.776884]
[1730979713742,7.93640689,187.06,187.02,23.776884]
[1730979715448,7.93640689,187.07,187.02,23.776884]
[1730979716246,20.12549,187.13,187.02,31.71329089]
[1730979716247,7.93640689,187.08,187.02,31.71329089]
[1730979717943,7.93640689,187.08,187.02,23.776884]
[1730979718436,7.93640689,187.08,187.02,28.79939665]
[1730979720554,7.93640689,187.08,187.02,36.73580354]
[1730979720856,7.93640689,187.08,187.04,23.776884]
[1730979721237,7.93640689,187.08,187.03,28.8018984]
[1730979722140,7.93640689,187.04,187.0,1.0]
[1730979722462,7.93640689,187.01,187.0,1.0]
[1730979723552,7.93640689,187.02,187.0,24.776884]
[1730979724137,158.4,187.13,187.01,23.776884]
[1730979724341,7.93640689,187.05,187.01,23.776884]
[1730979724537,7.93640689,187.04,187.01,23.776884]
[1730979725552,158.4,187.14,187.02,16.571]
[1730979725742,7.93640689,187.08,187.03,23.776884]
[1730979725943,7.21377048,187.15,187.03,31.71329089]
[1730979726144,7.93640689,187.1,187.05,23.776884]
[1730979727838,7.93640689,187.09,187.05,23.776884]
[1730979728038,7.93640689,187.09,187.04,23.776884]
[1730979730066,7.93640689,187.1,187.04,7.93640689]
[1730979730268,7.93640689,187.1,187.05,23.776884]
[1730979730648,7.21377048,187.15,187.05,23.776884]
[1730979730848,7.93640689,187.1,187.05,23.776884]
[1730979732343,7.93640689,187.11,187.05,31.71329089]
[1730979733240,158.4,187.23,187.09,7.93640689]
[1730979733501,3.98400708,187.22,187.1,31.71329089]
[1730979733679,7.93640689,187.17,187.12,23.776884]
[1730979733873,0.12549,187.22,187.12,23.776884]
[1730979734049,7.93640689,187.16,187.12,23.776884]
[1730979734252,7.93640689,187.17,187.11,7.93640689]
[1730979734446,7.93640689,187.17,187.12,23.776884]
[1730979735577,158.4,187.25,187.12,31.71329089]
[1730979735872,7.93640689,187.18,187.12,31.71329089]
[1730979736262,21.369752,187.26,187.14,31.71329089]
[1730979736471,158.4,187.29,187.14,31.71329089]
[1730979736774,7.93640689,187.2,187.14,31.71329089]
[1730979737548,0.12549,187.26,187.14,31.71329089]
[1730979737749,7.93640689,187.2,187.14,31.71329089]
[1730979738172,7.93640689,187.19,187.14,23.776884]
[1730979738670,7.93640689,187.2,187.14,31.71329089]
[1730979739053,158.4,187.28,187.14,31.71329089]
[1730979739263,7.93640689,187.2,187.14,31.71329089]
[1730979740851,7.93640689,187.21,187.16,39.320184]
[1730979742075,7.93640689,187.22,187.16,47.25659089]
[1730979742383,7.93640689,187.22,187.18,23.776884]
[1730979742669,7.93640689,187.22,187.17,23.776884]
[1730979743171,7.93640689,187.22,187.03,16.01]
[1730979743172,7.93640689,187.18,187.02,0.1]
[1730979743373,7.93640689,187.12,187.06,6.1868]
[1730979743751,7.93640689,187.13,187.06,14.12320689]
[1730979744877,7.93640689,187.13,187.07,23.776884]
[1730979745171,7.93640689,187.13,187.06,14.12320689]
[1730979746555,7.93640689,187.13,187.07,23.776884]
[1730979746761,7.93640689,187.14,187.07,31.71329089]
[1730979746965,7.93640689,187.13,187.07,23.776884]
[1730979748504,7.93640689,187.13,187.06,6.1868]
[1730979748663,7.93640689,187.13,187.06,14.12320689]
[1730979749876,7.93640689,187.13,187.07,23.776884]
[1730979753162,158.4,187.2,187.09,47.33529089]
[1730979753384,7.93640689,187.15,187.09,47.33529089]
[1730979754481,21.370617,187.22,187.09,47.33529089]
[1730979754482,7.93640689,187.16,187.09,47.33529089]
[1730979754673,7.93640689,187.18,187.11,31.71329089]
[1730979755186,158.4,187.24,187.13,23.776884]
[1730979755373,7.93640689,187.19,187.13,23.776884]
[1730979755678,7.93640689,187.19,187.13,31.71329089]
[1730979755882,7.93640689,187.2,187.13,31.71329089]
[1730979756082,7.93640689,187.22,187.16,31.71329089]
[1730979756286,7.93640689,187.24,187.18,23.776884]
[1730979756470,7.93640689,187.24,187.18,31.71329089]
[1730979756982,7.93640689,187.24,187.18,23.776884]
[1730979757481,5.3378,187.35,187.2,23.776884]
[1730979757682,7.93640689,187.26,187.2,23.776884]
[1730979757874,7.93640689,187.25,187.2,23.776884]
[1730979759777,7.93640689,187.25,187.19,23.776884]
[1730979762174,7.93640689,187.25,187.19,31.71329089]
[1730979762485,7.93640689,187.26,187.19,31.71329089]
[1730979763482,7.93640689,187.28,187.21,31.71329089]
[1730979763686,7.93640689,187.28,187.23,23.776884]
[1730979765402,7.93640689,187.28,187.22,23.776884]
[1730979765781,7.93640689,187.23,187.07,0.1]
[1730979765993,5.65248731,187.28,187.07,0.1]
[1730979765994,7.93640689,187.18,187.11,7.93640689]
[1730979766974,7.93640689,187.19,187.12,31.71329089]
[1730979768501,7.93640689,187.19,187.12,23.776884]
[1730979768702,7.93640689,187.18,187.12,23.776884]
[1730979770404,7.93640689,187.18,187.11,7.93640689]
[1730979770596,7.93640689,187.18,187.07,20.1]
[1730979770898,179.891151,187.27,187.13,7.93640689]
[1730979771081,7.93640689,187.2,187.13,7.93640689]
[1730979771803,7.93640689,187.2,187.14,23.776884]
[1730979772401,7.93640689,187.2,187.15,6.0202]
[1730979772585,7.93640689,187.26,187.2,23.776884]
[1730979772781,7.93640689,187.27,187.2,31.71329089]
[1730979772992,7.93640689,187.26,187.2,23.776884]
[1730979773388,12.44446608,187.26,187.2,23.776884]
[1730979775485,12.44446608,187.27,187.2,36.22135008]
[1730979776299,12.44446608,187.27,187.2,23.776884]
[1730979777601,0.12549,187.33,187.24,36.22135008]
[1730979777806,12.44446608,187.31,187.24,12.44446608]
[1730979778002,21.357201,187.36,187.25,23.776884]
[1730979778306,12.44446608,187.3,187.25,23.776884]
[1730979778533,12.44446608,187.3,187.24,23.776884]
[1730979778689,12.44446608,187.29,187.23,23.776884]
[1730979778884,12.44446608,187.28,187.23,23.776884]
[1730979779109,12.44446608,187.29,187.22,36.22135008]
[1730979788810,5.56279,187.36,187.22,36.22135008]
[1730979788811,12.44446608,187.31,187.24,12.44446608]
[1730979788990,158.4,187.39,187.29,23.776884]
[1730979789194,12.44446608,187.35,187.29,23.776884]
[1730979789615,12.44446608,187.34,187.28,23.776884]
[1730979791421,12.44446608,187.32,187.28,23.776884]
[1730979791612,12.44446608,187.32,187.27,23.776884]
[1730979793917,12.44446608,187.33,187.27,23.776884]
[1730979794618,12.44446608,187.32,187.26,23.776884]
[1730979794818,12.44446608,187.29,187.22,12.44446608]
[1730979795124,12.44446608,187.28,187.22,25.01633714]
[1730979795418,7.96241821,187.29,187.22,12.97875535]
[1730979795991,7.96241821,187.29,187.23,23.776884]
[1730979796205,7.96241821,187.28,187.22,5.01633714]
[1730979796413,5.46259,187.37,187.22,7.96241821]
[1730979796718,7.96241821,187.28,187.22,7.96241821]
[1730979797608,7.96241821,187.28,187.23,23.776884]
[1730979797820,7.96241821,187.28,187.22,23.776884]
[1730979798006,7.96241821,187.28,187.22,31.73930221]
[1730979798329,7.96241821,187.29,187.22,31.73930221]
[1730979800402,7.96241821,187.28,187.21,22.5352]
[1730979800610,7.96241821,187.28,187.22,20.0]
[1730979801716,7.96241821,187.28,187.23,23.776884]
[1730979805624,7.96241821,187.3,187.23,31.73930221]
[1730979806618,7.96241821,187.3,187.23,23.776884]
[1730979806826,7.96241821,187.3,187.23,31.73930221]
[1730979809305,0.12549,187.35,187.23,31.73930221]
[1730979809506,0.12549,187.35,187.22,20.0]
[1730979809507,7.96241821,187.3,187.25,23.776884]
[1730979810924,0.12549,187.37,187.25,23.776884]
[1730979811227,7.96241821,187.3,187.25,23.776884]
[1730979811526,7.96241821,187.29,187.25,23.776884]
[1730979811706,7.96241821,187.29,187.24,23.776884]
[1730979813018,7.96241821,187.28,187.24,23.776884]
[1730979813630,7.96241821,187.29,187.23,31.73930221]
[1730979814004,7.96241821,187.29,187.21,22.5352]
[1730979814005,7.96241821,187.29,187.22,31.73930221]
[1730979814205,7.96241821,187.28,187.22,31.73930221]
[1730979814828,7.96241821,187.29,187.22,31.73930221]
[1730979817603,7.96241821,187.28,187.22,23.776884]
[1730979821038,7.96241821,187.29,187.22,23.776884]
[1730979822112,0.12549,187.29,187.16,22.6081]
[1730979822450,7.96241821,187.17,187.12,22.6081]
[1730979822736,24.002374,187.29,187.12,22.6081]
[1730979822737,0.22549,187.27,187.12,22.6081]
[1730979823032,7.96241821,187.17,187.12,22.6081]
[1730979823235,7.96241821,187.16,187.12,22.6081]
[1730979823419,7.96241821,187.14,187.08,7.96241821]
[1730979824236,7.96241821,187.14,187.07,21.652]
[1730979824423,7.96241821,187.14,187.07,29.61441821]
[1730979825243,7.96241821,187.14,187.08,23.776884]
[1730979825536,7.96241821,187.14,187.08,7.96241821]
[1730979826334,7.96241821,187.14,187.07,29.61441821]
[1730979826936,7.96241821,187.13,187.08,23.776884]
[1730979827944,7.96241821,187.14,187.08,31.73930221]
[1730979830451,158.4,187.21,187.09,7.96241821]
[1730979830652,7.96241821,187.16,187.1,7.96241821]
[1730979833533,7.96241821,187.16,187.09,7.96241821]
[1730979833749,7.96241821,187.15,187.08,23.776884]
[1730979833949,7.96241821,187.15,187.08,31.73930221]
[1730979834458,7.96241821,187.16,187.1,7.96241821]
[1730979834972,7.96241821,187.16,187.1,23.776884]
[1730979837435,7.96241821,187.16,187.1,31.73930221]
[1730979837633,158.4,187.24,187.11,7.96241821]
[1730979837839,7.96241821,187.18,187.11,7.96241821]
[1730979838452,7.96241821,187.18,187.13,23.776884]
[1730979838761,7.96241821,187.19,187.13,23.776884]
[1730979839154,21.492398,187.23,187.13,31.73930221]
[1730979839351,21.492398,187.23,187.14,7.96241821]
[1730979839543,7.96241821,187.2,187.13,31.73930221]
[1730979839859,7.96241821,187.19,187.13,31.73930221]
[1730979840234,7.96241821,187.19,187.13,23.776884]
[1730979841334,7.96241821,187.2,187.13,31.73930221]
[1730979843342,7.96241821,187.21,187.14,29.36051821]
[1730979844255,7.96241821,187.2,187.14,29.36051821]
[1730979844631,7.96241821,187.2,187.14,21.3981]
[1730979845034,7.96241821,187.2,187.14,29.36051821]
[1730979846079,7.96241821,187.21,187.15,31.73930221]
[1730979846258,7.96241821,187.21,187.15,23.776884]
[1730979847259,7.96241821,187.2,187.15,23.776884]
[1730979848546,21.364497,187.25,187.15,31.73930221]
[1730979848737,7.96241821,187.21,187.15,31.73930221]
[1730979848936,0.12549,187.27,187.15,31.73930221]
[1730979849137,0.12549,187.27,187.16,7.96241821]
[1730979849333,7.96241821,187.23,187.17,7.96241821]
[1730979850243,7.96241821,187.23,187.15,23.776884]
[1730979850244,7.96241821,187.23,187.16,7.96241821]
[1730979850561,7.96241821,187.23,187.17,23.776884]
[1730979851534,7.96241821,187.23,187.17,31.73930221]
[1730979856567,0.12549,187.29,187.17,31.73930221]
[1730979856750,7.96241821,187.24,187.18,5.01800322]
[1730979857752,7.96241821,187.23,187.18,5.01800322]
[1730979858862,7.96241821,187.23,187.17,31.73930221]
[1730979859345,7.96241821,187.23,187.18,5.01917718]
[1730979859546,7.96241821,187.2,187.18,5.01917718]
[1730979859745,7.96241821,187.2,187.14,21.3981]
[1730979859959,7.96241821,187.2,187.14,26.41790963]
[1730979860546,7.96241821,187.2,187.14,21.3981]
[1730979860946,7.96241821,187.19,187.14,21.3981]
[1730979861364,7.96241821,187.19,187.15,5.02057567]
[1730979861565,7.96241821,187.19,187.14,21.3981]
[1730979861751,7.96241821,187.16,187.14,5.02061991]
[1730979861958,7.96241821,187.15,187.09,5.02061991]
[1730979862264,7.96241821,187.15,187.08,21.8562]
[1730979862265,7.96241821,187.14,187.1,5.02061991]
[1730979862567,7.96241821,187.14,187.09,5.02061991]
[1730979862768,7.96241821,187.14,187.08,26.87681991]
[1730979862952,7.96241821,187.15,187.09,23.776884]
[1730979863154,7.96241821,187.15,187.09,36.75992212]
[1730979863364,7.96241821,187.15,187.1,5.02061991]
[1730979863957,7.96241821,187.15,187.09,31.73930221]
[1730979864268,7.96241821,187.15,187.1,5.02272848]
[1730979865567,7.96241821,187.16,187.1,5.02272848]
[1730979866274,7.96241821,187.16,187.1,12.98514669]
[1730979867170,0.12549,187.22,187.1,12.98514669]
[1730979867472,7.96241821,187.18,187.11,36.76203069]
[1730979867672,7.96241821,187.18,187.12,5.02272848]
[1730979868177,7.96241821,187.18,187.12,12.98514669]
[1730979870164,1.60992005,187.25,187.13,23.776884]
[1730979870369,96.0,187.26,187.13,23.776884]
[1730979870370,7.96241821,187.19,187.13,23.776884]
[1730979870675,7.96241821,187.2,187.14,7.96241821]
[1730979870861,7.96241821,187.2,187.15,23.776884]
[1730979875576,0.12549,187.25,187.15,31.73930221]
[1730979875886,7.96241821,187.2,187.15,46.274284]
[1730979878355,0.12549,187.25,187.15,46.274284]
[1730979878590,7.96241821,187.2,187.15,46.274284]
[1730979879476,7.96241821,187.21,187.15,46.274284]
[1730979883871,1.61893561,187.27,187.15,54.23670221]
[1730979884191,7.96241821,187.21,187.15,54.23670221]
[1730979884393,0.12549,187.27,187.15,54.23670221]
[1730979884562,7.96241821,187.21,187.15,54.23670221]
[1730979884757,5.5538572,187.28,187.2,7.96241821]
[1730979884976,7.96241821,187.26,187.2,7.96241821]
[1730979888097,7.96241821,187.21,187.15,23.776884]
[1730979888282,7.96241821,187.16,187.09,22.6455]
[1730979888609,0.1,187.26,187.09,22.6455]
[1730979888610,1.599368,187.21,187.09,22.6455]
[1730979888891,7.96241821,187.14,187.09,22.6455]
[1730979889081,7.96241821,187.12,187.09,22.6455]
[1730979889281,7.96241821,187.1,187.05,22.1256]
[1730979889482,7.96241821,187.09,187.05,22.1256]
[1730979890197,7.96241821,187.08,187.05,22.1256]
[1730979891123,7.96241821,187.08,187.01,30.54151821]
[1730979891668,7.96241821,187.08,187.02,23.776884]
[1730979892590,7.96241821,187.08,187.02,31.73930221]
[1730979893875,7.96241821,187.09,187.02,31.73930221]
[1730979894395,7.96241821,187.09,187.03,7.96241821]
[1730979894903,7.96241821,187.09,187.02,31.73930221]
[1730979895307,7.96241821,187.09,187.03,7.96241821]
[1730979895489,0.12549,187.15,187.04,31.73930221]
[1730979895804,7.96241821,187.1,187.05,23.776884]
[1730979898216,7.96241821,187.12,187.05,31.73930221]
[1730979898503,7.96241821,187.12,187.06,7.96241821]
[1730979898683,7.96241821,187.13,187.06,7.96241821]
[1730979899607,7.96241821,187.15,187.09,23.776884]
[1730979900102,7.96241821,187.16,187.09,31.73930221]
[1730979900319,7.96241821,187.14,187.09,23.776884]
[1730979900480,7.96241821,187.14,187.02,20.1]
[1730979900805,7.96241821,187.14,187.08,23.776884]
[1730979901011,7.96241821,187.14,187.08,31.73930221]
[1730979902396,0.12549,187.18,187.08,31.73930221]
[1730979902590,7.96241821,187.15,187.08,31.73930221]
[1730979902791,7.96241821,187.14,187.08,31.73930221]
[1730979904100,7.96241821,187.16,187.09,7.96241821]
[1730979905604,7.96241821,187.19,187.12,7.96241821]
[1730979907303,21.368984,187.23,187.11,23.776884]
[1730979907304,7.96241821,187.18,187.11,31.73930221]
[1730979907512,7.96241821,187.17,187.11,31.73930221]